bitfinex/quotes_BTCUSD_20240901
["timestamp","ask_amount","ask_price","bid_price","bid_amount"]
[1725176718931,0.0004,58439.0,58438.0,0.1467]
[1725176719515,0.0004,58439.0,58438.0,0.24882684]
[1725176719708,0.0004,58439.0,58438.0,0.22326631]
[1725176719928,0.0004,58439.0,58438.0,0.22668804]
[1725176720152,0.0004,58439.0,58438.0,0.28994818]
[1725176720646,0.0004,58439.0,58438.0,0.20875622]
[1725176720862,0.0004,58439.0,58438.0,0.1717]
[1725176721953,0.0004,58439.0,58438.0,0.17512174]
[1725176722402,0.0004,58439.0,58438.0,0.685064]
[1725176722624,0.0004,58439.0,58438.0,1.03072874]
[1725176722860,0.0004,58439.0,58438.0,1.1904448]
[1725176723084,0.0004,58439.0,58438.0,0.342821]
[1725176723295,0.0004,58439.0,58438.0,1.03072849]
[1725176723503,0.0004,58439.0,58438.0,1.18884893]
[1725176723933,0.0004,58439.0,58438.0,1.17784893]
[1725176724168,0.0004,58459.0,58438.0,1.17784893]
[1725176724169,0.0004,58459.0,58450.0,0.1467]
[1725176724403,0.0004,58459.0,58451.0,0.00342114]
[1725176724624,0.0377,58466.0,58450.0,0.1467]
[1725176724625,0.00817,58476.0,58472.0,0.17102]
[1725176724840,0.00817,58476.0,58474.0,0.0819]
[1725176725057,0.00817,58476.0,58475.0,0.06795867]
[1725176725272,0.00817,58476.0,58475.0,0.23897167]
[1725176725504,0.00817,58476.0,58475.0,0.61016527]
[1725176725788,0.00817,58490.0,58476.0,0.0761]
[1725176726009,0.00817,58490.0,58475.0,0.59727071]
[1725176726010,0.00817,58490.0,58483.0,0.50540786]
[1725176726238,0.351843,58507.0,58475.0,0.09712627]
[1725176726239,0.03518432,58508.0,58490.0,0.0761]
[1725176726464,0.00206332,58508.0,58498.0,0.32906544]
[1725176726703,0.00206332,58508.0,58498.0,0.04101654]
[1725176726915,0.02680975,58517.0,58499.0,0.17435807]
[1725176726916,0.170898,58515.0,58499.0,0.17435807]
[1725176727136,0.02593611,58517.0,58497.0,0.0761]
[1725176727137,0.341789,58516.0,58497.0,0.0761]
[1725176727362,0.341789,58516.0,58482.0,0.07838589]
[1725176727363,0.0115725,58528.0,58508.0,0.15812044]
[1725176727609,0.0115725,58528.0,58502.0,0.0761]
[1725176727610,0.170889,58518.0,58502.0,0.0761]
[1725176727821,0.04813262,58527.0,58506.0,0.67632886]
[1725176728035,0.04813262,58527.0,58506.0,0.170921]
[1725176728036,0.170877,58522.0,58506.0,0.170921]
[1725176728329,0.170877,58522.0,58499.0,0.688763]
[1725176728330,0.15812044,58514.0,58497.0,0.1397]
[1725176728535,0.15812044,58514.0,58482.0,0.07638589]
[1725176728536,0.15812044,58503.0,58500.0,0.50540786]
[1725176728756,0.170937,58501.0,58500.0,0.50540786]
[1725176728964,0.1,58501.0,58489.0,0.0761]
[1725176729177,0.1,58500.0,58489.0,0.0761]
[1725176729393,0.0379,58513.0,58498.0,0.025]
[1725176729636,0.15812044,58507.0,58498.0,0.025]
[1725176729842,0.15812044,58507.0,58482.0,0.405581]
[1725176729843,0.341907,58496.0,58483.0,0.0761]
[1725176730061,0.170971,58490.0,58483.0,0.0761]
[1725176730277,0.341874,58501.0,58483.0,0.0761]
[1725176730523,0.1,58500.0,58487.0,0.170977]
[1725176730731,0.170945,58499.0,58486.0,0.170979]
[1725176730937,0.1,58500.0,58488.0,0.170975]
[1725176730938,0.1,58498.0,58488.0,0.170975]
[1725176731146,0.000817,58504.0,58498.0,0.001]
[1725176731370,0.000817,58504.0,58498.0,0.0811]
[1725176731578,0.000817,58504.0,58499.0,0.00341842]
[1725176731797,0.000817,58504.0,58498.0,0.0811]
[1725176732543,0.171746,58504.0,58498.0,0.0801]
[1725176732774,0.000817,58504.0,58503.0,0.170931]
[1725176733004,0.000817,58504.0,58503.0,0.54871289]
[1725176733238,0.000817,58504.0,58503.0,0.170931]
[1725176734586,0.000817,58504.0,58503.0,0.598893]
[1725176735038,0.000817,58504.0,58503.0,0.5986321]
[1725176735482,0.000817,58504.0,58503.0,0.9524941]
[1725176735707,0.000817,58504.0,58503.0,0.72922355]
[1725176735944,0.000817,58504.0,58503.0,0.018]
[1725176736222,0.67172144,58504.0,58503.0,0.018]
[1725176736455,1.00857744,58504.0,58503.0,0.018]
[1725176736688,0.850457,58504.0,58503.0,0.018]
[1725176736946,0.508601,58504.0,58503.0,0.018]
[1725176737172,0.166745,58504.0,58503.0,0.012]
[1725176737406,0.1,58511.0,58503.0,0.012]
[1725176737631,0.341803,58514.0,58503.0,0.012]
[1725176737632,0.170917,58508.0,58504.0,0.02171141]
[1725176737860,0.341824,58510.0,58503.0,0.012]
[1725176738091,0.170927,58505.0,58503.0,0.012]
[1725176738321,0.170927,58505.0,58501.0,0.0603]
[1725176738540,0.170924,58506.0,58501.0,0.0603]
[1725176738781,0.341808,58513.0,58503.0,0.001]
[1725176739018,0.196915,58522.0,58506.0,0.170921]
[1725176739019,0.1,58512.0,58506.0,0.170921]
[1725176739234,0.1,58512.0,58504.0,0.01755777]
[1725176739235,0.1,58512.0,58507.0,0.170919]
[1725176739462,0.0379,58522.0,58504.0,0.01755777]
[1725176739463,0.001,58511.0,58504.0,0.01414]
[1725176739691,0.001,58511.0,58510.0,0.512731]
[1725176739942,0.683498,58523.0,58510.0,0.17091]
[1725176740175,0.341728,58527.0,58510.0,0.17091]
[1725176740176,0.170894,58516.0,58510.0,0.17091]
[1725176740419,0.170894,58516.0,58507.0,0.341836]
[1725176740420,0.341728,58527.0,58508.0,0.50540786]
[1725176740642,0.170892,58517.0,58510.0,0.170909]
[1725176740864,0.170892,58517.0,58511.0,0.222181]
[1725176741093,0.170892,58517.0,58506.0,0.006]
[1725176741094,0.341765,58520.0,58509.0,0.170913]
[1725176741320,0.170897,58515.0,58509.0,0.170913]
[1725176741779,0.196915,58526.0,58501.0,0.0603]
[1725176741780,0.170916,58508.0,58507.0,0.004]
[1725176742689,0.170916,58508.0,58501.0,0.0603]
[1725176742913,0.170916,58508.0,58507.0,0.014]
[1725176743135,0.341818,58511.0,58507.0,0.014]
[1725176743351,0.170914,58509.0,58507.0,0.014]
[1725176743594,1.43123,58508.0,58507.0,0.014]
[1725176743905,1.857113,58508.0,58507.0,0.023]
[1725176744003,1.53123,58508.0,58507.0,0.023]
[1725176744233,1.53123,58508.0,58507.0,0.014]
[1725176744452,1.53323,58508.0,58507.0,0.02]
[1725176744679,1.53123,58508.0,58507.0,9.006]
[1725176744902,1.53323,58508.0,58507.0,9.006]
[1725176745162,1.53323,58508.0,58507.0,9.0057391]
[1725176745387,1.53123,58508.0,58507.0,9.0057391]
[1725176745613,1.53223,58508.0,58507.0,9.0057391]
[1725176745881,1.53223,58508.0,58507.0,9.0]
[1725176746537,1.53223,58508.0,58507.0,9.001]
[1725176747227,0.955582,58508.0,58507.0,9.001]
[1725176747680,0.271916,58508.0,58507.0,9.001]
[1725176747902,0.613749,58508.0,58507.0,9.001]
[1725176748120,0.955582,58508.0,58507.0,9.001]
[1725176748332,0.954582,58508.0,58507.0,9.001]
[1725176748547,0.512749,58508.0,58507.0,9.001]
[1725176748787,0.514749,58508.0,58507.0,9.001]
[1725176749035,0.514749,58508.0,58507.0,9.0]
[1725176749250,0.514749,58508.0,58507.0,9.001]
[1725176749485,0.173916,58508.0,58507.0,9.16955164]
[1725176749695,0.173916,58508.0,58507.0,9.001]
[1725176749696,0.003,58508.0,58507.0,9.001]
[1725176749938,0.173916,58508.0,58507.0,9.0]
[1725176750119,0.174916,58508.0,58507.0,9.0]
[1725176751907,0.004,58508.0,58507.0,9.0]
[1725176752788,0.00194338,58508.0,58507.0,9.0]
[1725176753472,0.00194338,58508.0,58507.0,9.16855164]
[1725176753702,0.00194338,58508.0,58507.0,9.0]
[1725176755086,0.00194338,58508.0,58507.0,8.9997391]
[1725176755335,0.00194338,58508.0,58507.0,9.0759391]
[1725176755570,0.00194338,58508.0,58507.0,9.5886971]
[1725176755799,0.00194338,58508.0,58507.0,9.41540974]
[1725176756245,0.00194338,58508.0,58507.0,9.41630734]
[1725176756717,0.00194338,58508.0,58507.0,10.09998534]
[1725176756718,0.00275938,58508.0,58507.0,10.09998534]
[1725176756949,0.00275938,58508.0,58507.0,10.50632434]
[1725176757387,0.00275938,58508.0,58507.0,10.16448534]
[1725176757897,0.00275938,58508.0,58507.0,9.9959337]
[1725176758133,0.00275938,58508.0,58507.0,9.3122557]
[1725176758365,0.001816,58508.0,58507.0,9.3122557]
[1725176758599,0.000816,58508.0,58507.0,9.3122557]
[1725176759314,0.000816,58508.0,58507.0,9.1413367]
[1725176759532,0.000816,58508.0,58507.0,9.0006367]
[1725176759786,0.513565,58508.0,58507.0,9.0096367]
[1725176760255,0.513565,58508.0,58507.0,9.0858367]
[1725176760256,0.000816,58508.0,58507.0,9.0858367]
[1725176760480,0.000816,58508.0,58507.0,9.2567557]
[1725176760693,0.000816,58508.0,58507.0,9.5985947]
[1725176760926,0.000816,58508.0,58507.0,9.2567557]
[1725176761545,0.000816,58508.0,58507.0,9.2707557]
[1725176761796,0.000816,58508.0,58507.0,9.9544337]
[1725176762027,0.000816,58508.0,58507.0,10.12298534]
[1725176762238,0.000816,58508.0,58507.0,9.78114634]
[1725176762453,0.000816,58508.0,58507.0,9.6125947]
[1725176762688,0.000816,58508.0,58507.0,9.6770947]
[1725176762921,0.000816,58508.0,58507.0,9.1643367]
[1725176763832,0.000816,58508.0,58507.0,9.3352557]
[1725176764571,0.000816,58508.0,58507.0,9.1643367]
[1725176764798,0.171732,58508.0,58507.0,9.0236367]
[1725176765259,0.171732,58508.0,58507.0,9.0233758]
[1725176766894,0.171732,58508.0,58507.0,9.19192744]
[1725176767132,0.855398,58508.0,58507.0,9.0233758]
[1725176767592,0.513565,58508.0,58507.0,9.0233758]
[1725176768746,0.855398,58508.0,58507.0,9.0233758]
[1725176770644,0.855398,58508.0,58507.0,9.15047791]
[1725176770873,0.855398,58508.0,58507.0,9.0233758]
[1725176770874,1.432046,58508.0,58507.0,9.0233758]
[1725176771101,1.532046,58508.0,58507.0,9.09992208]
[1725176771325,1.532046,58508.0,58507.0,9.0233758]
[1725176771764,1.335131,58508.0,58507.0,9.0233758]
[1725176771990,1.532046,58508.0,58507.0,9.0143758]
[1725176772221,1.532046,58508.0,58507.0,9.0013758]
[1725176772457,1.533046,58508.0,58507.0,9.0013758]
[1725176773131,1.874879,58508.0,58507.0,9.0013758]
[1725176774014,1.88652623,58508.0,58507.0,9.0013758]
[1725176776293,1.84721816,58508.0,58507.0,9.0013758]
[1725176779244,1.99954816,58508.0,58507.0,9.0013758]
[1725176780482,1.84721816,58508.0,58507.0,9.0013758]
[1725176782318,1.84721816,58508.0,58507.0,9.7013758]
[1725176786866,1.84721816,58508.0,58507.0,9.69616747]
[1725176788355,1.83557093,58508.0,58507.0,9.69616747]
[1725176789951,1.79767093,58508.0,58507.0,9.69616747]
[1725176790967,2.53433482,58508.0,58507.0,9.69616747]
[1725176791214,2.13100382,58508.0,58507.0,9.69616747]
[1725176791664,1.97339689,58508.0,58507.0,9.69616747]
[1725176791882,2.13100382,58508.0,58507.0,9.69616747]
[1725176792599,1.94157382,58508.0,58507.0,9.69616747]
[1725176797132,1.65186689,58508.0,58507.0,9.69616747]
[1725176797360,1.46764082,58508.0,58507.0,9.69616747]
[1725176801868,1.12580782,58508.0,58507.0,9.69616747]
[1725176805483,0.96820089,58508.0,58507.0,9.69616747]
[1725176805706,1.12580782,58508.0,58507.0,9.69616747]
[1725176808480,0.1404276,58508.0,58507.0,9.69616747]
[1725176808739,0.02862471,58508.0,58507.0,10.35652547]
[1725176809194,0.02862471,58508.0,58507.0,10.86691611]
[1725176809464,0.001816,58508.0,58507.0,10.69836447]
[1725176809673,0.000816,58508.0,58507.0,10.69836447]
[1725176809911,0.000816,58508.0,58507.0,10.69736447]
[1725176810129,0.001816,58508.0,58507.0,10.70236447]
[1725176810376,0.001816,58508.0,58507.0,10.69736447]
[1725176811336,0.001816,58508.0,58507.0,10.70836447]
[1725176811790,0.000816,58508.0,58507.0,10.70836447]
[1725176812265,0.000816,58508.0,58507.0,10.71336447]
[1725176812932,0.000816,58508.0,58507.0,10.37152547]
[1725176813166,0.341769,58519.0,58512.0,0.1429]
[1725176813381,0.170893,58516.0,58513.0,0.0784]
[1725176813610,0.341756,58522.0,58507.0,10.22155511]
[1725176813611,0.341756,58522.0,58514.0,0.0645]
[1725176813898,0.341756,58522.0,58508.0,0.50540786]
[1725176813899,0.01168006,58524.0,58522.0,0.5123651]
[1725176814119,0.341994,58532.0,58522.0,0.96985261]
[1725176814120,0.0003,58532.0,58522.0,0.96985261]
[1725176814362,0.0003,58532.0,58522.0,1.04825261]
[1725176814609,0.0003,58532.0,58522.0,1.04725261]
[1725176814862,0.0003,58532.0,58522.0,0.6542651]
[1725176815148,0.0003,58532.0,58522.0,0.9960161]
[1725176815376,0.0003,58532.0,58522.0,0.9947552]
[1725176815607,0.0003,58532.0,58522.0,1.3365062]
[1725176816332,0.0003,58532.0,58527.0,1.338927]
[1725176816559,0.0003,58532.0,58527.0,1.4733197]
[1725176817226,0.0003,58532.0,58527.0,1.338927]
[1725176817914,0.0004,58539.0,58537.0,0.17083]
[1725176818135,0.0004,58539.0,58538.0,0.14631609]
[1725176818376,0.0004,58539.0,58538.0,0.31714509]
[1725176818835,0.0004,58539.0,58538.0,0.4171936]
[1725176819295,0.0004,58539.0,58538.0,1.09709351]
[1725176819518,0.00817,58563.0,58538.0,0.005]
[1725176819763,0.170766,58560.0,58553.0,0.170783]
[1725176820012,0.00817,58563.0,58553.0,0.170783]
[1725176820013,0.341524,58561.0,58553.0,0.0784]
[1725176820284,0.170782,58554.0,58553.0,0.0784]
[1725176820526,0.512347,58554.0,58553.0,0.0784]
[1725176820760,0.00817,58563.0,58553.0,0.0784]
[1725176820991,0.171169,58559.0,58553.0,0.0784]
[1725176821222,0.171169,58559.0,58555.0,0.0784]
[1725176821702,0.170773,58558.0,58555.0,0.0784]
[1725176821946,0.170775,58557.0,58555.0,0.0784]
[1725176822659,0.17117,58559.0,58555.0,0.0784]
[1725176822881,0.0004,58559.0,58555.0,0.0784]
[1725176823099,0.170775,58557.0,58555.0,0.0904]
[1725176823339,0.170695,58557.0,58555.0,0.0904]
[1725176823794,0.170776,58557.0,58555.0,0.1114]
[1725176824474,0.171168,58559.0,58555.0,0.1114]
[1725176824696,0.0004,58559.0,58555.0,0.1114]
[1725176824912,0.853882,58556.0,58555.0,0.1114]
[1725176825134,0.853882,58556.0,58555.0,0.1111391]
[1725176825566,0.853882,58556.0,58555.0,0.1041391]
[1725176825780,0.853882,58556.0,58555.0,0.1091391]
[1725176826237,0.853882,58556.0,58555.0,0.0831391]
[1725176826450,0.853882,58556.0,58555.0,0.0891391]
[1725176826925,0.853882,58556.0,58555.0,0.0861391]
[1725176827186,0.512329,58556.0,58555.0,0.11520301]
[1725176827402,0.512329,58556.0,58555.0,0.1001391]
[1725176828811,1.01148893,58556.0,58555.0,0.022]
[1725176829051,1.35304193,58556.0,58555.0,0.022]
[1725176829765,1.35304193,58556.0,58555.0,0.014]
[1725176829991,0.170802,58547.0,58546.0,0.0008987]
[1725176830223,0.512407,58547.0,58546.0,0.0778987]
[1725176830676,0.170802,58547.0,58546.0,0.0778987]
[1725176831426,0.512407,58547.0,58546.0,0.0778987]
[1725176832087,0.512407,58547.0,58546.0,0.0918987]
[1725176832745,0.170799,58549.0,58546.0,0.1008987]
[1725176832965,0.170802,58548.0,58546.0,0.1008987]
[1725176833196,0.512407,58547.0,58546.0,0.1008987]
[1725176833649,0.854012,58547.0,58546.0,0.0918987]
[1725176833877,0.854012,58547.0,58546.0,0.0008987]
[1725176834100,1.195617,58547.0,58546.0,0.0138987]
[1725176834339,0.1,58556.0,58546.0,0.0138987]
[1725176834340,0.00818,58567.0,58565.0,3.409]
[1725176834580,0.076686,58582.0,58578.0,0.654437]
[1725176834796,0.00818,58582.0,58578.0,0.313012]
[1725176835097,0.00818,58582.0,58578.0,0.654437]
[1725176835320,0.00818,58582.0,58578.0,0.313012]
[1725176835543,0.00818,58582.0,58578.0,0.1423]
[1725176836217,0.00818,58582.0,58578.0,0.15653]
[1725176836434,0.00818,58582.0,58578.0,0.16953]
[1725176836651,0.00818,58582.0,58578.0,0.17294375]
[1725176836835,0.00818,58582.0,58578.0,0.17171375]
[1725176837070,0.00818,58582.0,58578.0,0.1823]
[1725176837287,0.00818,58582.0,58578.0,0.026]
[1725176837288,0.15760693,58580.0,58578.0,0.026]
[1725176837739,0.1004,58579.0,58578.0,0.04]
[1725176837956,0.1004,58579.0,58578.0,0.026]
[1725176838406,0.1004,58579.0,58578.0,0.014]
[1725176838625,0.1004,58579.0,58572.0,0.0782]
[1725176838859,0.1004,58579.0,58578.0,0.014]
[1725176839091,0.0004,58579.0,58578.0,0.1563]
[1725176839312,0.0004,58579.0,58578.0,1.03616586]
[1725176839772,0.0004,58579.0,58578.0,1.40059086]
[1725176839986,0.0004,58579.0,58578.0,1.41459086]
[1725176840212,0.0004,58579.0,58578.0,1.42759086]
[1725176840434,0.0115725,58587.0,58578.0,1.42759086]
[1725176840435,0.0115725,58587.0,58586.0,1.15835193]
[1725176840651,0.0115725,58587.0,58586.0,1.52272993]
[1725176840870,0.0115725,58587.0,58586.0,1.18635193]
[1725176841088,0.0115725,58587.0,58586.0,1.53272993]
[1725176841582,0.00817,58618.0,58598.0,0.99557]
[1725176841808,0.15760693,58616.0,58598.0,0.413011]
[1725176842022,0.15760693,58616.0,58598.0,0.312954]
[1725176842257,0.00817,58618.0,58598.0,0.654262]
[1725176842479,0.00817,58618.0,58598.0,0.99898237]
[1725176842719,0.00817,58618.0,58598.0,0.99557]
[1725176842958,0.00817,58618.0,58598.0,1.109627]
[1725176843182,0.19622685,58616.0,58598.0,0.326954]
[1725176843424,0.170619,58610.0,58598.0,0.0782]
[1725176843666,0.081,58612.0,58598.0,0.0782]
[1725176843911,0.001217,58599.0,58598.0,0.0782]
[1725176844146,0.001217,58599.0,58598.0,0.0922]
[1725176844388,0.001217,58599.0,58598.0,0.014]
[1725176844605,0.001217,58599.0,58598.0,0.028]
[1725176844863,0.001217,58599.0,58598.0,0.042]
[1725176845102,0.001217,58599.0,58598.0,0.014]
[1725176845344,0.001217,58599.0,58592.0,0.00341304]
[1725176845586,0.001217,58599.0,58598.0,0.014]
[1725176846064,0.001217,58599.0,58598.0,0.184654]
[1725176846274,0.001217,58599.0,58598.0,0.511962]
[1725176846562,0.001217,58599.0,58598.0,0.85327]
[1725176847002,0.001217,58599.0,58598.0,1.208578]
[1725176847681,0.001217,58599.0,58598.0,1.194578]
[1725176847931,0.001217,58599.0,58598.0,1.270578]
[1725176848142,0.001217,58599.0,58598.0,1.284578]
[1725176848369,0.001217,58599.0,58598.0,1.4130358]
[1725176848595,0.001217,58599.0,58598.0,0.95727]
[1725176849514,0.001217,58599.0,58598.0,0.94327]
[1725176849740,0.349364,58618.0,58617.0,0.170598]
[1725176849741,0.00817,58618.0,58617.0,0.170598]
[1725176850202,0.00817,58618.0,58617.0,0.511795]
[1725176850448,0.00817,58618.0,58614.0,0.417212]
[1725176850665,0.00817,58618.0,58617.0,0.852992]
[1725176850888,0.00817,58618.0,58617.0,0.170598]
[1725176851336,0.00817,58618.0,58617.0,0.511795]
[1725176851787,0.00817,58618.0,58617.0,0.852992]
[1725176852224,0.00817,58618.0,58617.0,0.9524812]
[1725176852440,0.00817,58618.0,58617.0,0.511795]
[1725176852678,0.00817,58618.0,58617.0,0.525795]
[1725176853332,0.00817,58618.0,58617.0,0.866992]
[1725176853543,0.00817,58618.0,58617.0,0.879992]
[1725176853754,0.00817,58618.0,58617.0,0.866992]
[1725176853978,0.00817,58618.0,58617.0,1.0020024]
[1725176854240,0.00817,58618.0,58617.0,0.880992]
[1725176855301,0.00817,58618.0,58617.0,0.8807311]
[1725176857041,0.00817,58618.0,58617.0,0.5395341]
[1725176857497,0.00817,58618.0,58617.0,0.1983371]
[1725176857741,0.00817,58618.0,58617.0,0.5395341]
[1725176857958,0.00817,58618.0,58617.0,0.64179871]
[1725176858396,0.00817,58618.0,58617.0,0.5395341]
[1725176859516,0.00817,58618.0,58617.0,0.028]
[1725176859755,0.178766,58618.0,58617.0,0.028]
[1725176860417,0.178766,58618.0,58617.0,0.014]
[1725176860418,0.00817,58618.0,58617.0,0.014]
[1725176860885,0.00817,58618.0,58617.0,0.013]
[1725176861338,0.00817,58618.0,58617.0,0.027]
[1725176861825,0.00817,58618.0,58617.0,0.013]
[1725176862048,0.178766,58618.0,58617.0,0.013]
[1725176862477,0.178766,58618.0,58617.0,0.019]
[1725176862692,0.519958,58618.0,58617.0,0.019]
[1725176862908,0.178766,58618.0,58617.0,0.019]
[1725176863129,0.00817,58618.0,58617.0,0.019]
[1725176864262,0.00817,58618.0,58617.0,0.6917559]
[1725176864517,0.00817,58618.0,58617.0,0.672795]
[1725176864952,0.00817,58618.0,58617.0,0.331598]
[1725176865382,0.00817,58618.0,58617.0,0.0954]
[1725176865645,0.00817,58618.0,58617.0,0.0992]
[1725176865882,0.00817,58618.0,58617.0,1.71356623]
[1725176866105,0.00817,58618.0,58617.0,1.67783558]
[1725176866332,0.00817,58618.0,58617.0,1.519479]
[1725176866553,0.00817,58618.0,58617.0,1.344589]
[1725176866759,0.00817,58618.0,58617.0,1.349589]
[1725176866989,0.00817,58618.0,58617.0,1.68303064]
[1725176867227,0.00817,58618.0,58617.0,1.67503064]
[1725176867439,0.00817,58618.0,58617.0,1.75027835]
[1725176867656,0.00817,58618.0,58617.0,1.76427835]
[1725176868318,0.00817,58618.0,58617.0,1.68303064]
[1725176868540,0.00817,58618.0,58617.0,1.68903064]
[1725176868985,0.00817,58618.0,58617.0,1.68303064]
[1725176869198,0.00817,58618.0,58617.0,1.69303064]
[1725176869424,0.00817,58618.0,58617.0,1.68303064]
[1725176869658,0.00817,58618.0,58617.0,1.52114064]
[1725176869868,0.00817,58618.0,58617.0,1.366589]
[1725176870077,0.00817,58618.0,58617.0,1.42177657]
[1725176870283,0.00817,58618.0,58617.0,1.366589]
[1725176870713,0.00817,58618.0,58617.0,0.198598]
[1725176870949,0.00817,58618.0,58617.0,0.028]
[1725176871143,0.00817,58618.0,58617.0,0.198598]
[1725176871571,0.00817,58618.0,58617.0,0.028]
[1725176871791,0.00817,58618.0,58617.0,0.539795]
[1725176872017,0.00817,58618.0,58617.0,1.28410968]
[1725176872529,0.00817,58618.0,58617.0,1.78020668]
[1725176872760,0.00817,58618.0,58617.0,1.84159902]
[1725176872989,0.00817,58618.0,58617.0,1.86460868]
[1725176873217,0.00817,58618.0,58617.0,1.90374269]
[1725176873440,0.00817,58618.0,58617.0,1.88974269]
[1725176873671,0.00817,58618.0,58617.0,1.52345882]
[1725176873901,0.00817,58618.0,58617.0,1.51445882]
[1725176874128,0.00817,58618.0,58617.0,1.45253814]
[1725176874376,0.00817,58618.0,58617.0,1.377089]
[1725176874617,0.00817,58618.0,58617.0,1.43859916]
[1725176874846,0.00817,58618.0,58617.0,1.45259916]
[1725176875079,0.00817,58618.0,58617.0,1.6211508]
[1725176875298,0.00817,58618.0,58617.0,1.67131065]
[1725176875531,0.00817,58618.0,58617.0,1.29023903]
[1725176875789,0.00817,58618.0,58617.0,1.12668739]
[1725176876039,0.00817,58618.0,58617.0,0.07840951]
[1725176876299,0.00817,58618.0,58617.0,0.08682084]
[1725176876524,0.00817,58618.0,58617.0,0.54820633]
[1725176876741,0.00817,58618.0,58617.0,0.544795]
[1725176876954,0.00817,58618.0,58617.0,0.67028594]
[1725176877186,0.00817,58618.0,58617.0,0.32908894]
[1725176877444,0.00817,58618.0,58617.0,0.33250028]
[1725176877874,0.00817,58618.0,58617.0,0.67369728]
[1725176878558,0.00817,58618.0,58617.0,1.00989428]
[1725176878808,0.00817,58618.0,58617.0,0.028]
[1725176880004,0.519958,58618.0,58617.0,0.028]
[1725176880192,0.92465,58618.0,58617.0,0.028]
[1725176880624,1.265842,58618.0,58617.0,0.028]
[1725176880857,0.92465,58618.0,58617.0,0.028]
[1725176881103,0.92465,58618.0,58617.0,0.014]
[1725176881558,0.92465,58618.0,58617.0,0.028]
[1725176881781,0.92465,58618.0,58617.0,0.014]
[1725176882009,0.92465,58618.0,58617.0,0.0148976]
[1725176882230,0.92465,58618.0,58617.0,0.0008976]
[1725176882496,0.92465,58618.0,58617.0,0.0148976]
[1725176883137,0.92465,58618.0,58617.0,0.0008976]
[1725176883369,0.92465,58618.0,58617.0,0.0078976]
[1725176883370,0.00817,58618.0,58617.0,0.0078976]
[1725176883863,0.00817,58618.0,58617.0,0.07321059]
[1725176884110,0.00817,58618.0,58617.0,0.0208976]
[1725176884838,0.00817,58618.0,58617.0,0.1607976]
[1725176885107,0.00817,58618.0,58617.0,1.3929866]
[1725176885337,0.00817,58618.0,58617.0,1.44339611]
[1725176885556,0.00817,58618.0,58617.0,1.66233363]
[1725176886001,0.00817,58618.0,58617.0,1.55453824]
[1725176886246,0.00817,58618.0,58617.0,1.54553824]
[1725176886499,0.00817,58618.0,58617.0,1.74156508]
[1725176886963,0.00817,58618.0,58617.0,1.72856508]
[1725176887206,0.00817,58618.0,58617.0,1.76556508]
[1725176887442,0.00817,58618.0,58617.0,1.84145623]
[1725176888333,0.00817,58618.0,58617.0,1.79316959]
[1725176888705,0.00817,58618.0,58617.0,1.27342095]
[1725176888961,0.00817,58618.0,58617.0,0.6855926]
[1725176889139,0.00817,58618.0,58617.0,1.0267896]
[1725176889545,0.00817,58618.0,58617.0,0.3393956]
[1725176889813,0.00817,58618.0,58617.0,0.2754956]
[1725176889927,0.00817,58618.0,58617.0,0.27890693]
[1725176890149,0.00817,58618.0,58617.0,0.34141882]
[1725176890374,0.00817,58618.0,58617.0,1.02881282]
[1725176890609,0.00817,58618.0,58617.0,1.37659849]
[1725176890842,0.00817,58618.0,58617.0,1.43909849]
[1725176891302,0.00817,58618.0,58617.0,1.46209849]
[1725176892013,0.00817,58618.0,58617.0,1.46409849]
[1725176892249,0.00817,58618.0,58617.0,1.63798964]
[1725176892461,0.00817,58618.0,58617.0,1.56209849]
[1725176892691,0.00817,58618.0,58617.0,1.63805524]
[1725176892962,0.00817,58618.0,58617.0,1.63805517]
[1725176893198,0.0268,58620.0,58617.0,1.56209849]
[1725176893433,0.0003,58632.0,58617.0,1.56209849]
[1725176893434,0.0003,58632.0,58631.0,0.99379]
[1725176893652,0.0003,58632.0,58631.0,1.18981684]
[1725176893899,0.0003,58632.0,58631.0,0.652674]
[1725176894572,0.0003,58632.0,58631.0,0.99379]
[1725176894792,0.0003,58632.0,58631.0,1.1417814]
[1725176895484,0.0003,58632.0,58631.0,0.8006654]
[1725176896295,0.0003,58632.0,58631.0,0.0925]
[1725176896500,0.0003,58632.0,58631.0,0.0314106]
[1725176896912,0.0003,58632.0,58631.0,0.198558]
[1725176897276,0.0003,58632.0,58631.0,0.539674]
[1725176897908,0.0003,58632.0,58631.0,0.198558]
[1725176898787,0.0003,58632.0,58631.0,0.43184564]
[1725176899003,0.0003,58632.0,58631.0,1.41763564]
[1725176899253,0.0003,58632.0,58631.0,1.75875164]
[1725176901483,0.0003,58632.0,58631.0,1.74875164]
[1725176901698,0.0003,58632.0,58631.0,1.73575164]
[1725176902130,0.0003,58632.0,58631.0,1.66393284]
[1725176902345,0.0003,58632.0,58631.0,1.67393284]
[1725176903522,0.0003,58632.0,58631.0,1.69693284]
[1725176903938,0.0003,58632.0,58631.0,2.03804884]
[1725176904779,0.0003,58632.0,58631.0,2.02404884]
[1725176904998,0.0003,58632.0,58631.0,2.19260048]
[1725176905211,0.340966,58657.0,58644.0,0.8526]
[1725176905212,0.0104425,58645.0,58644.0,0.8526]
[1725176905419,0.0104425,58645.0,58644.0,0.9151]
[1725176907660,0.0004425,58645.0,58644.0,0.9291]
[1725176907869,0.0004425,58645.0,58644.0,1.09413663]
[1725176908336,0.0004425,58645.0,58644.0,1.03163663]
[1725176908534,0.0004425,58645.0,58644.0,0.69059663]
[1725176908739,0.0004425,58645.0,58644.0,0.17903663]
[1725176909125,0.0004425,58645.0,58644.0,0.8806]
[1725176909331,0.0004425,58645.0,58644.0,0.028]
[1725176909532,0.0004425,58645.0,58644.0,0.19852]
[1725176909735,0.0004425,58645.0,58644.0,0.028]